Cogmind - Beta 12 --- EXPLORER MODE // 2023.04.03 @ 18:16:14 Player: viper Result: Destroyed by L-41 Fighter with Axe Performance ------------- Evolutions (3) 1500 Regions Visited (4) 800 Robots Destroyed (41) 205 Value Destroyed (979) 979 Prototype IDs (4) 80 Alien Tech Used (0) 0 Bonus (0) 0 TOTAL SCORE: 3564 Bonus ------- None Cogmind --------- Core Integrity 0/700 Matter 272/300 Energy 90/100 System Corruption 0% Temperature Cool (0) Movement Core (1400) Ox27 Location -7/Factory Parts ------- > --- POWER (2) -------- (None) > --- PROPULSION (4) --- (None) > --- UTILITY (6) ------ Huge Storage Unit Targeting Computer Power Shielding > --- WEAPON (2) ------- Assault Rifle > --- INVENTORY (25) --- (None) Peak State ------------ > --- POWER ------------ Ion Engine Micro Nuclear Core > --- PROPULSION ------- Aluminum Leg Aluminum Leg Aluminum Leg Improved Aluminum Leg > --- UTILITY ---------- Cryofiber Web Huge Storage Unit Targeting Computer Targeting Computer Core Shielding Power Shielding > --- WEAPON ----------- Heavy Assault Rifle Heavy Assault Rifle > --- INVENTORY -------- Aluminum Leg Assault Rifle Assault Rifle Light Assault Rifle Light Assault Rifle Heavy Assault Rifle [Rating: 22] Favorites ----------- Power Light Ion Engine Engine Light Ion Engine Power Core Micro Nuclear Core Propulsion Aluminum Leg Leg Aluminum Leg Utility Targeting Computer Device Cryofiber Web Storage Huge Storage Unit Processor Targeting Computer Protection Power Shielding Weapon Heavy Assault Rifle Ballistic Gun Heavy Assault Rifle Build | -11 -10 -9 -8 -7 ------- Run | Jun Mat Mat Mat Fac Slots Evolved 7 | . 1 2 2 2 Power 1 | . . . 1 . Propulsion 2 | . . 2 . . Utility 4 | . 1 . 1 2 Weapon . | . . . . . Parts Attached 33 | 7 4 7 4 11 Power 4 | 1 . 1 1 1 Engine 3 | 1 . 1 1 . Core 1 | . . . . 1 Reactor . | . . . . . Propulsion 7 | 2 . 3 . 2 Treads . | . . . . . Leg 7 | 2 . 3 . 2 Wheel . | . . . . . Hover . | . . . . . Flight . | . . . . . Utility 10 | 2 4 . 2 2 Device 1 | . . . 1 . Storage 5 | 1 3 . 1 . Processor 2 | 1 1 . . . Hackware . | . . . . . Protection 2 | . . . . 2 Artifact . | . . . . . Weapon 12 | 2 . 3 1 6 Energy Gun . | . . . . . Energy Cannon . | . . . . . Ballistic Gun 12 | 2 . 3 1 6 Ballistic Cannon . | . . . . . Launcher . | . . . . . Special Weapon . | . . . . . Impact Weapon . | . . . . . Slashing Weapon . | . . . . . Piercing Weapon . | . . . . . Special Melee Weapon . | . . . . . Unidentified Prototypes . | . . . . . Parts Lost 12 | . . . 1 11 Power 3 | . . . 1 2 Propulsion 2 | . . . . 2 Utility 3 | . . . . 3 Weapon 4 | . . . . 4 Highest Loss Streak 11 | . . . 1 11 To Critical Strikes . | . . . . . Average Slot Usage (%) 97 | . 99 100 98 85 Engine 11 | . 12 10 15 5 Leg 32 | . 25 40 33 21 Device 2 | . . . 8 6 Storage 9 | . 12 10 8 7 Processor 19 | . 24 20 16 12 Protection 1 | . . . . 13 Ballistic Gun 18 | . 25 20 16 11 Naked Turns . | . . . . . Heaviest Build 100 | 16 86 90 95 100 Greatest Support 43 | 20 20 43 43 43 Greatest Overweight (x) 27 | . 4 2 2 27 Average Overweight (x) 1 | . 1 2 2 2 Largest Inventory Capacity 25 | 10 25 25 25 25 Average Capacity 23 | 8 19 25 25 25 Most Carried 12 | 5 7 12 11 8 Average Carried 6 | 2 5 6 8 4 Final Capacity 25 | 10 25 25 25 25 Final Carried 12 | 5 7 12 9 . Class Distribution -------------------- 69% | Hacker-Mutant 30% | Scavenger-Mutant Dominant Class ---------------- Hacker-Mutant | -10/Materials Hacker-Mutant | -9/Materials Scavenger-Mutant | -8/Materials Scavenger-Mutant | -7/Factory Resources | -11 -10 -9 -8 -7 ----------- Run | Jun Mat Mat Mat Fac Matter Collected 1009 | 245 265 118 263 118 Remotely . | . . . . . Salvage Created 1775 | . 690 248 663 174 Parts 111 | . 49 19 36 7 Haulers Intercepted 3 | . 2 . 1 . Recyclers Shooed 2 | . . . 2 . Parts Field Recycled . | . . . . . Retrieved Matter . | . . . . . Parts Self-Destructed . | . . . . . Prevented . | . . . . . Kills | -11 -10 -9 -8 -7 ------- Run | Jun Mat Mat Mat Fac Combat Hostiles Destroyed 22 | . 9 4 8 1 Guns 22 | . 9 4 8 1 Classes Destroyed 11 | . 6 2 2 1 Worker 5 | . 2 1 2 . Builder 1 | . . . 1 . Tunneler 2 | . 1 . . 1 Hauler 3 | . 2 . 1 . Recycler 5 | . 1 1 2 1 Watcher 3 | . 2 1 . . Swarmer 2 | . . 2 . . Grunt 12 | . 9 1 2 . Duelist 1 | . . . . 1 Sentry 6 | . . 1 5 . Hunter 1 | . . . 1 . Best Kill Streak 6 | . 4 2 6 1 Combat Bots Only 4 | . 4 2 3 1 Max Kills in Single Turn 1 | . 1 1 1 1 Gunslinging . | . . . . . Exploded . | . . . . . Melee . | . . . . . Uniques/NPCs Destroyed . | . . . . . Combat | -11 -10 -9 -8 -7 -------- Run | Jun Mat Mat Mat Fac Damage Taken 2394 | . 335 61 239 1759 Core 825 | . 87 11 22 705 Absorbed by Shields . | . . . . . Redirected to Shielding 99 | . . . . 99 Core Remaining (%) 89 | 100 65 97 96 . Volleys Fired 120 | . 50 12 38 20 Largest 2 | . 2 2 2 2 Hottest 46 | . 40 40 46 46 Shots Fired 235 | . 100 24 76 35 Gun 235 | . 100 24 76 35 Cannon . | . . . . . Launcher . | . . . . . Special . | . . . . . Kinetic 235 | . 100 24 76 35 Thermal . | . . . . . Explosive . | . . . . . Electromagnetic . | . . . . . Robot Hit Streak 37 | . 28 14 37 32 Robot Miss Streak 2 | . 1 1 2 1 Penetration Max . | . . . . . Secondary Targets 5 | . 4 1 . . Max Gunslinging Chain 1 | . 1 1 . . Shots Hit Robots 201 | . 85 19 65 32 Core Hits 81 | . 34 11 27 9 Critical Kills 1 | . 1 . . . Critical Parts Destroyed 1 | . . . . 1 Critical Strikes 2 | . 1 . . 1 Destroy 2 | . 1 . . 1 Melee Attacks . | . . . . . Impact . | . . . . . Slashing . | . . . . . Piercing . | . . . . . Sneak Attacks . | . . . . . Combat Hostiles . | . . . . . Follow-up Attacks . | . . . . . Damage Inflicted 2483 | . 892 211 958 422 Guns 2483 | . 892 211 958 422 Cannons . | . . . . . Explosions . | . . . . . Melee . | . . . . . Ramming . | . . . . . Kinetic 2483 | . 892 211 958 422 Thermal . | . . . . . Explosive . | . . . . . Electromagnetic . | . . . . . Impact . | . . . . . Slashing . | . . . . . Piercing . | . . . . . Highest Corruption 2 | . 2 . . . Average Corruption 1 | . 1 . . . Corruption Purged . | . . . . . Corruption Blocked . | . . . . . Effects 1 | . 1 . . . Heat Flow Errors 1 | . 1 . . . Overload Shots . | . . . . . Overflow Damage . | . . . . . Projectiles . | . . . . . Explosions . | . . . . . Melee . | . . . . . Knockbacks . | . . . . . Impact . | . . . . . Kinetic . | . . . . . Secondary . | . . . . . Self-Inflicted Damage . | . . . . . Shots . | . . . . . Rammed . | . . . . . Targets Rammed 1 | . 1 . . . Kicked 1 | . 1 . . . Crushed . | . . . . . Highest Temperature 259 | . 259 3 . . Average Temperature 37 | . 38 3 . . Received Heat Transfer 447 | . 306 6 135 . Siege Activations . | . . . . . Robots Corrupted . | . . . . . Combat Hostiles . | . . . . . Parts Fried . | . . . . . Impact Corruptions . | . . . . . Robots Melted . | . . . . . Combat Hostiles . | . . . . . Parts Melted . | . . . . . Heat Transferred . | . . . . . Parts Sabotaged . | . . . . . Parts Stolen . | . . . . . Parts Stripped . | . . . . . Power Chain Reactions . | . . . . . Missiles Intercepted . | . . . . . Alert | -11 -10 -9 -8 -7 ------- Run | Jun Mat Mat Mat Fac Peak Influence 229 | . 229 150 216 37 Initial 27 | . . 22 4 27 Average 60 | . 93 49 73 25 Maximum Alert Level 1 | . 1 . 1 . Low Security (%) 93 | 100 76 100 93 100 Level 1 6 | . 23 . 6 . Level 2 . | . . . . . Level 3 . | . . . . . Level 4 . | . . . . . Level 5 . | . . . . . High Security . | . . . . . Max Security . | . . . . . Squads Dispatched 7 | . 1 2 3 1 Investigation 3 | . 1 . 1 1 Extermination . | . . . . . Reinforcement 3 | . . 2 1 . Assault . | . . . . . Garrison 1 | . . . 1 . Intercept . | . . . . . Searches Triggered . | . . . . . Construction Impeded . | . . . . . Haulers Reinforced . | . . . . . Active Scanning Responses . | . . . . . Cargo Convoy Interrupts . | . . . . . Stealth | -11 -10 -9 -8 -7 --------- Run | Jun Mat Mat Mat Fac Distress Signals 1 | . . . 1 . Communications Jammed . | . . . . . Distress Signals . | . . . . . Times Spotted 30 | . 12 7 8 3 Peak Tracking Total 5 | . 5 2 3 3 Tactical Retreats . | . . . . . Traps | -11 -10 -9 -8 -7 ------- Run | Jun Mat Mat Mat Fac Traps Triggered 2 | . 2 . . . Indirectly . | . . . . . Trap Hack Attempts . | . . . . . Triggered . | . . . . . Disarmed . | . . . . . Reprogrammed . | . . . . . Reused . | . . . . . Traps Extracted . | . . . . . Installed . | . . . . . Triggered . | . . . . . Machines | -11 -10 -9 -8 -7 ---------- Run | Jun Mat Mat Mat Fac Machines Disabled . | . . . . . Max in Single Turn . | . . . . . Machines Repaired . | . . . . . Machines Sabotaged . | . . . . . Overloaded Fab Kills . | . . . . . Hacking | -11 -10 -9 -8 -7 --------- Run | Jun Mat Mat Mat Fac Machines Accessed 6 | . 2 1 2 1 Terminals 5 | . 2 1 2 . Fabricators 1 | . . . . 1 Repair Stations . | . . . . . Recycling Units . | . . . . . Scanalyzers . | . . . . . Garrison Access . | . . . . . Total Hacks 28 | . 11 4 10 3 Successful 17 | . 8 3 6 . Failed 11 | . 3 1 4 3 Catastrophic 1 | . . . . 1 Database Lockouts . | . . . . . Manual . | . . . . . Terminals 25 | . 11 4 10 . Fabricators 3 | . . . . 3 Repair Stations . | . . . . . Recycling Units . | . . . . . Scanalyzers . | . . . . . Garrison Access . | . . . . . Terminal Hacks 17 | . 8 3 6 . Record 8 | . 2 2 4 . Robot Analysis 1 | . 1 . . . Prototype ID Bank 2 | . 1 . 1 . Scanalyzer Index 1 | . . . 1 . Alert Level 1 | . 1 . . . Locate Traps 1 | . 1 . . . Zone Layout 3 | . 2 1 . . Fabricator Hacks . | . . . . . Repair Station Hacks . | . . . . . Recycling Unit Hacks . | . . . . . Scanalyzer . | . . . . . Garrison Access Hacks . | . . . . . Unauthorized Hacks . | . . . . . Terminals . | . . . . . Fabricators . | . . . . . Repair Stations . | . . . . . Recycling Units . | . . . . . Scanalyzers . | . . . . . Garrison Access . | . . . . . Data Cores Recovered . | . . . . . Used . | . . . . . Hacking Detections 5 | . 1 1 2 1 Full Trace Events 5 | . 1 1 2 1 Feedback Events 1 | . 1 . . . Corruption 1 | . 1 . . . Feedback Blocked . | . . . . . Robot Schematics Acquired . | . . . . . Robots Built . | . . . . . Authchips . | . . . . . Time . | . . . . . Total Robot Build Rating . | . . . . . Part Schematics Acquired . | . . . . . Parts Built . | . . . . . Authchips . | . . . . . Time . | . . . . . Total Part Build Rating . | . . . . . Parts Repaired . | . . . . . Time . | . . . . . Parts Recycled . | . . . . . Recycled Matter . | . . . . . Retrieved Matter . | . . . . . Retrieved Components . | . . . . . Parts Scanalyzed . | . . . . . Part Schematics Acquired . | . . . . . Parts Damaged . | . . . . . Bothacking | -11 -10 -9 -8 -7 ------------ Run | Jun Mat Mat Mat Fac Used RIF Installer . | . . . . . Robots Hacked . | . . . . . Non-combat . | . . . . . Combat . | . . . . . Robot Hacks Applied . | . . . . . Relay Couplers Released . | . . . . . Fabnet Peak Effective % . | . . . . . Robots Rewired . | . . . . . Allies Hacked . | . . . . . Hacks Repelled . | . . . . . Allies | -11 -10 -9 -8 -7 -------- Run | Jun Mat Mat Mat Fac Total Allies . | . . . . . Largest Group . | . . . . . Highest-Rated Group . | . . . . . Highest-Rated Ally . | . . . . . Total Orders . | . . . . . Ally Attacks . | . . . . . Total Damage . | . . . . . Kills . | . . . . . Allies Corrupted . | . . . . . Allies Melted . | . . . . . Intel | -11 -10 -9 -8 -7 ------- Run | Jun Mat Mat Mat Fac Robot Analysis Total 1 | . 1 . . . Derelict Logs Recovered . | . . . . . Drone Launches . | . . . . . Drone Recoveries . | . . . . . Exploration | -11 -10 -9 -8 -7 ------------- Run | Jun Mat Mat Mat Fac Turns Passed 2507 | 79 528 932 654 314 Spaces Moved 748 | 60 156 252 206 74 Core 13 | 11 . . . 2 Treads . | . . . . . Legs 735 | 49 156 252 206 72 Wheels . | . . . . . Hover . | . . . . . Flight . | . . . . . Fastest Speed 50 | 50 120 260 260 260 Average Speed 247 | 107 242 260 260 295 Slowest Speed 1400 | 120 400 260 260 1400 Overloaded Moves . | . . . . . Propulsion Burnouts . | . . . . . Robots Hopped . | . . . . . Cave-ins Triggered . | . . . . . Exploration Rate (%) 17 | 5 31 20 27 2 Regions Visited 4 Branch Regions . Pre-discovered Areas . | . . . . . Known Exits Taken 4 | 1 1 1 1 . Unknown Exits Taken . | . . . . . Scrap Searched . | . . . . . Spaces Dug . | . . . . . Terrain Destroyed . | . . . . . Melee . | . . . . . Projectile . | . . . . . AOE . | . . . . . Terrain Rammed . | . . . . . Walls Destroyed . | . . . . . Machines Disabled . | . . . . . Actions | -11 -10 -9 -8 -7 --------- Run | Jun Mat Mat Mat Fac Total 1176 | 71 214 506 251 134 Wait 260 | . . 232 . 28 Move 744 | 59 155 251 205 74 Hop . | . . . . . Pick Up 11 | 5 2 3 1 . Fast Attach 11 | 7 1 . . 3 Attach 14 | . 1 2 3 8 Detach 1 | . 1 . . . Swap 8 | . 2 5 1 . Drop 6 | . 1 1 3 1 Fire 120 | . 50 12 38 20 Melee . | . . . . . Ram . | . . . . . Kick 1 | . 1 . . . Crush . | . . . . . Escape Stasis . | . . . . . Rewire . | . . . . . Trap . | . . . . . Miscellaneous . | . . . . . Route ------- -11/Junkyard -10/Materials (discovered 3 exits: *Mat / *Min x2) -9/Materials -8/Materials -7/Factory History --------- Turn | Location | Event 2 | -11/Junkyard | Identified exit to Materials 2 | -11/Junkyard | Discovered exit to Materials (range 16) 80 | -11/Junkyard | Entered Materials 80 | -10/Materials | Evolved 1 slot: Utility x1 80 | -10/Materials | Identified exit to Mines 80 | -10/Materials | Discovered exit to Mines (range 7) 296 | -10/Materials | Discovered exit to Mines (range 16) 309 | -10/Materials | Build established: Hacker-Mutant 516 | -10/Materials | Identified exit to Materials 516 | -10/Materials | Discovered exit to Materials (range 16) 608 | -10/Materials | Entered another Materials area 608 | -9/Materials | Evolved 2 slots: Propulsion x2 1534 | -9/Materials | Identified exit to Materials 1534 | -9/Materials | Discovered exit to Materials (range 3) 1540 | -9/Materials | Entered another Materials area 1540 | -8/Materials | Evolved 2 slots: Power x1, Utility x1 1605 | -8/Materials | Garrison activated, responded to threat 1968 | -8/Materials | Build established: Scavenger-Mutant 2140 | -8/Materials | Identified exit to Factory 2140 | -8/Materials | Discovered exit to Factory (range 12) 2194 | -8/Materials | Entered Factory 2194 | -7/Factory | Evolved 2 slots: Utility x2 2480 | -7/Factory | Core integrity fell below 50% 2498 | -7/Factory | Core integrity fell below 20% 2508 | -7/Factory | Destroyed by L-41 Fighter with Axe Last Messages --------------- 02447_ Assault Rifle severed. 02450_ Assault Rifle destroyed. 02452_ L-41 Fighter suffers critical hit (Destroy). 02452_ Destroyed Imp. Deuterium Engine. 02456_ Targeting Computer destroyed. 02460_ Lgt. Assault Rifle destroyed. 02462_ Hvy. Assault Rifle destroyed. 02464_ K-01 Serf collects debris. 02469_ Core Shielding destroyed. 02470_ Acquired Aluminum Leg. 02470_ K-01 Serf collects debris. 02473_ Lgt. Assault Rifle destroyed. 02474_ Aluminum Leg severed. 02475_ K-01 Serf collects debris. 02482_ Cryofiber Web destroyed. 02482_ K-01 Serf cleans the Fusion Modulator. 02486_ Acquired 70 matter. 02491_ K-01 Serf cleans the Fusion Modulator. 02491_ Aluminum Leg severed. 02506_ Acquired Assault Rifle. Map ----- +----------------------------------------------------+ | ????????????????????????????????????????? | | ????????????????????????????????????????? | | ????????????????????????????????????????? | | ????????????????????????????????????????? | | ????????????????????????????????????????? | | ????????????????????????????????????????? | | ?????????????????????????????? ????????? | | ?????????????????????????????? ###?????? | | ?????????????????????????????? ??????? | | ?????????????????????????????? ?????? | | ?????????????????????????????? ??????? | | ?????????????????????????????? ?????? | | ?????????????????????????????? """ ? ?? | | ?????????????????????????????# """ ??? | | ?????????????????????????????# """ ??? | | ?????????????????????????????# ?? | | ?????????????????????????????# """ #? | | ????????????????????????????? """ #? | | ?????????????????????????????# """ #? | | ???????????????????########### #? | | ???????????????????# + #? | | ???????????????????# """!""" #=#####????? | | ???????????????????# ""F=""" #%#????????? | | ???????????????????# ""=[""" #*#????????? | | ???????????????????# """ll #!#????????? | | ???????????????????# """!@ # #????????? | | ???????????????????# # #????????? | | ???????????????????# # #????????? | | ???????????????????########### #????????? | | ?????????????????????????????# #????????? | | ?????????????????????????????# #????????? | | ?????????????????????????????# #######??? | | ?????????????????????????????# #??? | | ?????????????????????????????#######!#??? | | ???????????????????????????????????#%#??? | | ???????????????????????????????????#!#??? | | ??????????????????????????#######??# #??? | | ??????????????????????????# ?# #??? | | ??????????????????????????# ?# #??? | | ??????????????????????????# # #??? | | ??????????????????????????# # #??? | | ??????????????????????????# + #??? | | ??????????????????????????# # #??? | | ??????????????????????????# # #??? | | ??????????????????????????# ?# #??? | | ??????????????????????????# [?# #??? | | ?????????????????????????########### #??? | | ????????????????????# #??? | | ??????????????????????###########+## #??? | | ??????????????????????# # #??? | +----------------------------------------------------+ Best States ------------- Heat Dissipation 34 Energy Generation 20 Energy Capacity 300 Matter Stores 300 Matter Capacity 300 Sight Range 16 Terrain Scan Density 10 Base Temperature (-) 100 Resistance: KI 35 Resistance: TH 35 Resistance: EX 35 Resistance: EM 35 Resistance: I 35 Resistance: S 35 Resistance: P 35 Core Shielding 20 Power Shielding 33 Evasion (%) 55 Targeting Accuracy 10 Offensive Hacking 20 Item Schematics ----------------- None Robot Schematics ------------------ None Fabricated ------------ Nothing Alien Tech Used ----------------- None Achievements -------------- None Challenges ------------ None Game ------ Seed ForcePotentialScythe Manual? 0 Play Time 00:16:14 Cumulative 1337.3 hours Start 2023.04.03 @ 18:02:19 End 2023.04.03 @ 18:16:14 Sessions 1 Manual Loads 0 Difficulty Explorer Special Mode None Game No. 843 Rogue 62 Adventurer 0 Explorer 781 Win Type - Total 6 Types 6/0/0/0/0/0/0/0/0 Lore% 70 Gallery% 81 Achievement% 62 Wizard Run 0 Options --------- ASCII 0 Keyboard 0 Movement Mouse Keybinds 0 Fullscreen 1 Font 36/Smallcaps Map View 76x50 Tactical HUD 1 Map Filters NONE Filters NONE Steam 1 RUN: 222d92c4-bbc7-4402-95e2-bbdff28c654f